fUST/lending_fUST_20240219
["ID","MTS","AMOUNT","RATE_DAILY","PERIOD"]
[314418212,1708324248890,-500.0,0.00027397,2]
[314418213,1708324248899,-500.0,0.00027397,2]
[314418214,1708324248908,-213.69747828,0.00027397,2]
[314418215,1708324248917,-500.48590783,0.00027397,2]
[314418216,1708324248927,-1000.0,0.00027397,2]
[314418217,1708324248936,-500.0,0.00027397,2]
[314418218,1708324248945,-500.0,0.00027397,2]
[314418219,1708324248954,-500.0,0.00027397,2]
[314418220,1708324248963,-500.0,0.00027397,2]
[314418221,1708324248972,-500.0,0.00027397,2]
[314418222,1708324248982,-553.06607985,0.00027397,2]
[314418223,1708324248991,-500.0,0.00027397,2]
[314418224,1708324249000,-500.0,0.00027397,2]
[314418225,1708324249009,-500.0,0.00027397,2]
[314418226,1708324249018,-500.0,0.00027397,2]
[314418227,1708324249028,-646.7128924,0.00027397,2]
[314418228,1708324249037,-836.42,0.00027397,2]
[314418229,1708324249046,-500.0,0.00027397,2]
[314418230,1708324249055,-500.0,0.00027397,2]
[314418231,1708324249064,-500.0,0.00027397,2]
[314418232,1708324249072,-462.30469123,0.00027397,2]
[314418233,1708324249081,-500.0,0.00027397,2]
[314418234,1708324249090,-500.0,0.00027397,2]
[314418235,1708324249099,-583.03533122,0.00027397,2]
[314418236,1708324249108,-500.0,0.00027397,2]
[314418237,1708324249117,-500.0,0.00027397,2]
[314418238,1708324249126,-500.0,0.00027397,2]
[314418239,1708324249135,-500.0,0.00027397,2]
[314418240,1708324249144,-1100.27,0.00027397,2]
[314418241,1708324249153,-430.97652315,0.00027397,2]
[314418242,1708324249162,-500.0,0.00027397,2]
[314418243,1708324249176,-1000.0,0.00027397,2]
[314418244,1708324249211,-1992.86,0.00027397,2]
[314418245,1708324249220,-500.0,0.00027397,2]
[314418246,1708324249229,-500.0,0.00027397,2]
[314418247,1708324249239,-500.0,0.00027397,2]
[314418248,1708324249248,-500.0,0.00027397,2]
[314418249,1708324249257,-500.0,0.00027397,2]
[314418250,1708324249266,-1206.75,0.00027397,2]
[314418251,1708324249275,-500.0,0.00027397,2]
[314418252,1708324249284,-500.0,0.00027397,2]
[314418253,1708324249294,-500.0,0.00027397,2]
[314418254,1708324249303,-500.0,0.00027397,2]
[314418255,1708324249312,-500.0,0.00027397,2]
[314418256,1708324249321,-526.28,0.00027397,2]
[314418257,1708324249330,-616.2438171,0.00027397,2]
[314418258,1708324249340,-500.0,0.00027397,2]
[314418259,1708324249349,-500.0,0.00027397,2]
[314418260,1708324249358,-500.0,0.00027397,2]
[314418261,1708324249367,-500.0,0.00027397,2]
[314418262,1708324249377,-553.4,0.00027397,2]
[314418263,1708324249385,-500.0,0.00027397,2]
[314418264,1708324249395,-187.49543019,0.00027397,2]
[314418265,1708324249404,-500.0,0.00027397,2]
[314418266,1708324249413,-500.0,0.00027397,2]
[314418267,1708324249422,-500.0,0.00027397,2]
[314418268,1708324249432,-500.0,0.00027397,2]
[314418269,1708324249442,-500.0,0.00027397,2]
[314418270,1708324249451,-500.0,0.00027397,2]
[314418271,1708324249460,-500.0,0.00027397,2]
[314418272,1708324249469,-523.84,0.00027397,2]
[314418273,1708324249478,-500.0,0.00027397,2]
[314418274,1708324249489,-3224.28,0.00027397,2]
[314418275,1708324249498,-500.0,0.00027397,2]
[314418276,1708324249506,-500.0,0.00027397,2]
[314418277,1708324249516,-500.0,0.00027397,2]
[314418278,1708324249527,-500.0,0.00027397,2]
[314418279,1708324249536,-1234.24,0.00027397,2]
[314418280,1708324249546,-500.0,0.00027397,2]
[314418281,1708324249555,-500.0,0.00027397,2]
[314418282,1708324249564,-931.41,0.00027397,2]
[314418283,1708324249573,-497.32054156,0.00027397,2]
[314418284,1708324249582,-500.0,0.00027397,2]
[314418285,1708324249590,-633.42,0.00027397,2]
[314418286,1708324249601,-500.0,0.00027397,2]
[314418287,1708324249610,-625.86,0.00027397,2]
[314418288,1708324249619,-500.0,0.00027397,2]
[314418289,1708324249628,-500.0,0.00027397,2]
[314418290,1708324249637,-647.22,0.00027397,2]
[314418291,1708324249645,-500.0,0.00027397,2]
[314418292,1708324249656,-500.0,0.00027397,2]
[314418293,1708324249665,-500.0,0.00027397,2]
[314418294,1708324249674,-500.0,0.00027397,2]
[314418295,1708324249684,-500.0,0.00027397,2]
[314418296,1708324249693,-3026.96,0.00027397,2]
[314418297,1708324249702,-500.0,0.00027397,2]
[314418298,1708324249711,-500.0,0.00027397,2]
[314418299,1708324249720,-500.0,0.00027397,2]
[314418300,1708324249730,-1752.13,0.00027397,2]
[314418301,1708324249739,-204.88270088,0.00027397,2]
[314418302,1708324249748,-500.0,0.00027397,2]
[314418303,1708324249758,-500.0,0.00027397,2]
[314418304,1708324249767,-500.0,0.00027397,2]
[314418305,1708324249776,-500.0,0.00027397,2]
[314418306,1708324249785,-500.0,0.00027397,2]
[314418307,1708324249795,-500.0,0.00027397,2]
[314418308,1708324249804,-685.0,0.00027397,2]
[314418309,1708324249813,-500.0,0.00027397,2]
[314418310,1708324249822,-500.0,0.00027397,2]
[314418311,1708324249831,-500.0,0.00027397,2]
[314418312,1708324249840,-992.63,0.00027397,2]
[314418313,1708324249849,-500.0,0.00027397,2]
[314418314,1708324249858,-500.0,0.00027397,2]
[314418315,1708324249867,-5482.69,0.00027397,2]
[314418316,1708324249876,-500.0,0.00027397,2]
[314418317,1708324249885,-500.0,0.00027397,2]
[314418318,1708324249894,-572.19,0.00027397,2]
[314418319,1708324249903,-500.0,0.00027397,2]
[314418320,1708324249912,-159.24159588,0.00027397,2]
[314418321,1708324249921,-865.82,0.00027397,2]
[314418322,1708324249930,-500.0,0.00027397,2]
[314418323,1708324249939,-500.0,0.00027397,2]
[314418324,1708324249948,-500.0,0.00027397,2]
[314418325,1708324249957,-734.6,0.00027397,2]
[314418326,1708324249966,-2190.19,0.00027397,2]
[314418327,1708324249976,-500.0,0.00027397,2]
[314418328,1708324249986,-500.0,0.00027397,2]
[314418329,1708324249994,-543.01,0.00027397,2]
[314418330,1708324250004,-368.07669695,0.00027397,2]
[314418331,1708324250091,-500.0,0.00027397,2]
[314418332,1708324250100,-5892.49,0.00027397,2]
[314418333,1708324250110,-500.0,0.00027397,2]
[314418334,1708324250120,-3685.28,0.00027397,2]
[314418335,1708324250129,-500.0,0.00027397,2]
[314418336,1708324250138,-500.0,0.00027397,2]
[314418337,1708324250147,-506.34866134,0.00027397,2]
[314418338,1708324250157,-169.92258086,0.00027397,2]
[314418339,1708324250166,-3540.98,0.00027397,2]
[314418340,1708324250176,-500.0,0.00027397,2]
[314418341,1708324250185,-500.0,0.00027397,2]
[314418342,1708324250195,-500.0,0.00027397,2]
[314418343,1708324250204,-500.0,0.00027397,2]
[314418344,1708324250213,-500.0,0.00027397,2]
[314418345,1708324250223,-888.75,0.00027397,2]
[314418346,1708324250233,-500.0,0.00027397,2]
[314418347,1708324250242,-500.0,0.00027397,2]
[314418348,1708324250251,-500.0,0.00027397,2]
[314418349,1708324250260,-500.0,0.00027397,2]
[314418350,1708324250270,-500.0,0.00027397,2]
[314418351,1708324250279,-1141.5,0.00027397,2]
[314418352,1708324250289,-500.0,0.00027397,2]
[314418353,1708324250298,-500.0,0.00027397,2]
[314418354,1708324250307,-500.0,0.00027397,2]
[314418355,1708324250317,-500.0,0.00027397,2]
[314418356,1708324250326,-500.0,0.00027397,2]
[314418357,1708324250337,-500.0,0.00027397,2]
[314418358,1708324250346,-500.0,0.00027397,2]
[314418359,1708324250356,-830.07,0.00027397,2]
[314418360,1708324250365,-500.0,0.00027397,2]
[314418361,1708324250375,-500.0,0.00027397,2]
[314418362,1708324250384,-25846.96,0.00027397,2]
[314418363,1708324250394,-500.0,0.00027397,2]
[314418364,1708324250405,-600.0,0.00027397,2]
[314418365,1708324250415,-2923.86,0.00027397,2]
[314418366,1708324250424,-400.68409136,0.00027397,2]
[314418367,1708324250434,-390.0,0.00027397,2]
[314418368,1708324250443,-500.0,0.00027397,2]
[314418369,1708324250453,-500.0,0.00027397,2]
[314418370,1708324250463,-500.0,0.00027397,2]
[314418371,1708324250472,-500.0,0.00027397,2]
[314418372,1708324250482,-613.39,0.00027397,2]
[314418373,1708324250491,-534.89,0.00027397,2]
[314418374,1708324250500,-500.0,0.00027397,2]
[314418375,1708324250509,-500.0,0.00027397,2]
[314418376,1708324250520,-500.0,0.00027397,2]
[314418377,1708324250530,-500.0,0.00027397,2]
[314418378,1708324250539,-500.0,0.00027397,2]
[314418379,1708324250548,-500.0,0.00027397,2]
[314418380,1708324250557,-650.79,0.00027397,2]
[314418381,1708324250568,-4043.79,0.00027397,2]
[314418382,1708324250578,-500.0,0.00027397,2]
[314418383,1708324250587,-651.69,0.00027397,2]
[314418384,1708324250599,-19321.22,0.00027397,2]
[314418385,1708324250609,-500.0,0.00027397,2]
[314418386,1708324250618,-500.0,0.00027397,2]
[314418387,1708324250628,-500.0,0.00027397,2]
[314418388,1708324250638,-500.0,0.00027397,2]
[314418389,1708324250647,-2241.64,0.00027397,2]
[314418390,1708324250656,-500.0,0.00027397,2]
[314418391,1708324250665,-500.0,0.00027397,2]
[314418392,1708324250675,-500.0,0.00027397,2]
[314418393,1708324250684,-1127.53,0.00027397,2]
[314418394,1708324250693,-500.0,0.00027397,2]
[314418395,1708324250702,-249.20328924,0.00027397,2]
[314418396,1708324250711,-2097.75,0.00027397,2]
[314418397,1708324250720,-500.0,0.00027397,2]
[314418398,1708324250729,-3966.85,0.00027397,2]
[314418399,1708324250739,-500.0,0.00027397,2]
[314418400,1708324250748,-300.41329275,0.00027397,2]
[314418401,1708324250757,-500.0,0.00027397,2]
[314418402,1708324250767,-500.0,0.00027397,2]
[314418403,1708324250776,-500.0,0.00027397,2]
[314418404,1708324250785,-500.0,0.00027397,2]
[314418405,1708324250794,-638.48,0.00027397,2]
[314418406,1708324250803,-500.0,0.00027397,2]
[314418407,1708324250813,-500.0,0.00027397,2]
[314418408,1708324250822,-187.01863124,0.00027397,2]
[314418409,1708324250832,-500.0,0.00027397,2]
[314418410,1708324250841,-614.15074526,0.00027397,2]
[314418411,1708324250850,-500.0,0.00027397,2]
[314418412,1708324250860,-500.0,0.00027397,2]
[314418413,1708324250869,-12076.9,0.00027397,2]
[314418414,1708324250878,-500.0,0.00027397,2]
[314418415,1708324250887,-500.0,0.00027397,2]
[314418416,1708324250896,-500.0,0.00027397,2]
[314418417,1708324250906,-441.85680475,0.00027397,2]
[314418418,1708324250915,-500.0,0.00027397,2]
[314418419,1708324250924,-1000.0,0.00027397,2]
[314418420,1708324250934,-500.0,0.00027397,2]
[314418421,1708324250943,-500.0,0.00027397,2]
[314418422,1708324250952,-500.0,0.00027397,2]
[314418423,1708324250961,-500.0,0.00027397,2]
[314418424,1708324250970,-563.47,0.00027397,2]
[314418425,1708324250979,-500.0,0.00027397,15]
[314418426,1708324250988,-500.0,0.00027397,2]
[314418427,1708324250997,-1049.7,0.00027397,2]
[314418428,1708324251007,-500.0,0.00027397,2]
[314418429,1708324251016,-2812.02,0.00027397,2]
[314418430,1708324251025,-616.02605988,0.00027397,2]
[314418431,1708324251034,-357.80283297,0.00027397,2]
[314418432,1708324251043,-500.0,0.00027397,2]
[314418433,1708324251053,-500.0,0.00027397,2]
[314418434,1708324251062,-500.0,0.00027397,2]
[314418435,1708324251071,-19858.5,0.00027397,2]
[314418436,1708324251080,-533.93,0.00027397,2]
[314418437,1708324251089,-3945.55,0.00027397,2]
[314418438,1708324251099,-500.0,0.00027397,2]
[314418439,1708324251108,-500.0,0.00027397,2]
[314418440,1708324251117,-500.0,0.00027397,2]
[314418441,1708324251126,-500.0,0.00027397,2]
[314418442,1708324251135,-2718.33,0.00027397,2]
[314418443,1708324251144,-500.0,0.00027397,2]
[314418444,1708324251154,-500.0,0.00027397,2]
[314418445,1708324251163,-500.0,0.00027397,2]
[314418446,1708324251173,-500.0,0.00027397,2]
[314418447,1708324251182,-500.0,0.00027397,2]
[314418448,1708324251191,-606.70610253,0.00027397,2]
[314418449,1708324251200,-500.0,0.00027397,2]
[314418450,1708324251210,-500.0,0.00027397,2]
[314418451,1708324251221,-500.0,0.00027397,2]
[314418452,1708324251231,-500.0,0.00027397,2]
[314418453,1708324251240,-2100.82,0.00027397,2]
[314418454,1708324251249,-500.0,0.00027397,2]
[314418455,1708324251259,-500.0,0.00027397,2]
[314418456,1708324251268,-500.0,0.00027397,2]
[314418457,1708324251277,-500.0,0.00027397,2]
[314418458,1708324251287,-833.29,0.00027397,2]
[314418459,1708324251296,-920.9,0.00027397,2]
[314418460,1708324251305,-500.0,0.00027397,2]
[314418461,1708324251315,-500.0,0.00027397,2]
[314418462,1708324251324,-584.98,0.00027397,2]
[314418463,1708324251334,-500.0,0.00027397,2]
[314418464,1708324251345,-500.0,0.00027397,2]
[314418465,1708324251354,-542.25,0.00027397,2]
[314418466,1708324251364,-1553.23,0.00027397,2]
[314418467,1708324251373,-29448.04,0.00027397,2]
[314418468,1708324251383,-645.76,0.00027397,2]
[314418469,1708324251393,-8831.68,0.00027397,2]
[314418470,1708324251402,-500.0,0.00027397,2]
[314418471,1708324251412,-500.0,0.00027397,2]
[314418472,1708324251422,-500.0,0.00027397,2]
[314418473,1708324251507,-500.0,0.00027397,2]
[314418474,1708324251519,-500.0,0.00027397,2]
[314418475,1708324251530,-500.0,0.00027397,2]
[314418476,1708324251539,-500.0,0.00027397,2]
[314418477,1708324251548,-10859.14,0.00027397,2]
[314418478,1708324251558,-500.0,0.00027397,2]
[314418479,1708324251568,-500.0,0.00027397,2]
[314418480,1708324251578,-528.37,0.00027397,2]
[314418481,1708324251587,-500.0,0.00027397,2]
[314418482,1708324251598,-160.0,0.00027397,10]
[314418483,1708324251607,-153.0,0.00027397,2]
[314418484,1708324251617,-153.0,0.00027397,2]
[314418485,1708324251627,-153.0,0.00027397,2]
[314418486,1708324251638,-300.0,0.00027432,2]
[314418487,1708324251647,-2000.0,0.000275,2]
[314418488,1708324251657,-3441.80722,0.0002751,2]
[314418489,1708324251666,-500.0,0.00027534,2]
[314418490,1708324251676,-166.666666,0.00027542,2]
[314418491,1708324251686,-179.13671126,0.00027566,3]
[314418492,1708324251695,-500.0,0.00027566,2]
[314418493,1708324251705,-6913.64418208,0.00027568,3]
[314418494,1708324251714,-531.67275807,0.00027568,7]
[314418495,1708324251724,-300.0,0.000276,13]
[314418496,1708324251733,-162.36324726,0.0002767,10]
[314418497,1708324251743,-500.0,0.00027671,2]
[314418498,1708324251752,-577.4120973,0.00027671,2]
[314418499,1708324251761,-500.0,0.00027671,2]
[314418500,1708324251771,-500.0,0.00027671,2]
[314418501,1708324251781,-500.0,0.00027671,2]
[314418502,1708324251791,-500.0,0.00027671,2]
[314418503,1708324251801,-497.62650012,0.00027671,2]
[314418504,1708324251810,-365.05339666,0.00027671,2]
[314418505,1708324251820,-500.0,0.00027671,2]
[314418506,1708324251829,-500.0,0.00027671,2]
[314418507,1708324251839,-500.0,0.00027671,2]
[314418508,1708324251848,-500.0,0.00027671,2]
[314418509,1708324251857,-500.0,0.00027671,2]
[314418510,1708324251866,-500.0,0.00027671,2]
[314418511,1708324251876,-500.0,0.00027671,2]
[314418512,1708324251885,-500.0,0.00027671,2]
[314418513,1708324251895,-500.0,0.00027671,2]
[314418514,1708324251904,-500.0,0.00027671,2]
[314418515,1708324251913,-590.99759878,0.00027671,2]
[314418516,1708324251922,-500.0,0.00027671,2]
[314418517,1708324251930,-500.0,0.00027671,2]
[314418518,1708324251940,-500.0,0.00027671,2]
[314418519,1708324251948,-500.0,0.00027671,2]
[314418520,1708324251957,-766.57,0.00027671,2]
[314418521,1708324251966,-568.47,0.00027671,2]
[314418522,1708324251975,-500.0,0.00027671,2]
[314418523,1708324251985,-683.9,0.00027671,2]
[314418524,1708324251994,-500.0,0.00027671,2]
[314418525,1708324252004,-500.0,0.00027671,2]
[314418526,1708324252013,-500.0,0.00027671,2]
[314418527,1708324252022,-500.0,0.00027671,2]
[314418528,1708324252032,-500.0,0.00027671,2]
[314418529,1708324252041,-500.0,0.00027671,2]
[314418530,1708324252050,-212.94438551,0.00027671,2]
[314418531,1708324252059,-250.75867538,0.00027671,2]
[314418532,1708324252069,-782.99,0.00027671,2]
[314418533,1708324252078,-500.0,0.00027671,2]
[314418534,1708324252087,-500.0,0.00027671,30]
[314418535,1708324252096,-500.0,0.00027671,2]
[314418536,1708324252105,-500.0,0.00027671,2]
[314418537,1708324252114,-500.0,0.00027671,2]
[314418538,1708324252123,-500.0,0.00027671,2]
[314418539,1708324252132,-500.0,0.00027671,2]
[314418540,1708324252141,-500.0,0.00027671,2]
[314418541,1708324252151,-200.0,0.00027671,2]
[314418542,1708324252160,-500.0,0.00027671,2]
[314418543,1708324252170,-500.0,0.00027671,2]
[314418544,1708324252180,-500.0,0.00027671,2]
[314418545,1708324252190,-579.12900507,0.00027671,2]
[314418546,1708324252200,-1236.3,0.00027671,2]
[314418547,1708324252210,-500.0,0.00027671,2]
[314418548,1708324252220,-500.0,0.00027671,2]
[314418549,1708324252229,-500.0,0.00027671,2]
[314418550,1708324252240,-517.55,0.00027671,2]
[314418551,1708324252249,-500.0,0.00027671,2]
[314418552,1708324252258,-610.46,0.00027671,2]
[314418553,1708324252268,-500.0,0.00027671,2]
[314418554,1708324252277,-500.0,0.00027671,2]
[314418555,1708324252286,-806.68,0.00027671,2]
[314418556,1708324252295,-500.0,0.00027671,2]
[314418557,1708324252305,-333.62431588,0.00027671,2]
[314418558,1708324252314,-500.0,0.00027671,2]
[314418559,1708324252323,-500.0,0.00027671,2]
[314418560,1708324252333,-500.0,0.00027671,2]
[314418561,1708324252343,-500.0,0.00027671,2]
[314418562,1708324252352,-500.0,0.00027671,2]
[314418563,1708324252362,-500.0,0.00027671,2]
[314418564,1708324252372,-500.0,0.00027671,2]
[314418565,1708324252382,-500.0,0.00027671,2]
[314418566,1708324252392,-500.0,0.00027671,2]
[314418567,1708324252403,-500.0,0.00027671,2]
[314418568,1708324252412,-500.0,0.00027671,2]
[314418569,1708324252422,-500.0,0.00027671,2]
[314418570,1708324252432,-500.0,0.00027671,2]
[314418571,1708324252442,-500.0,0.00027671,2]
[314418572,1708324252451,-500.0,0.00027671,2]
[314418573,1708324252461,-500.0,0.00027671,2]
[314418574,1708324252471,-500.0,0.00027671,2]
[314418575,1708324252480,-500.0,0.00027671,2]
[314418576,1708324252491,-594.9404503,0.00027671,2]
[314418577,1708324252500,-500.0,0.00027671,2]
[314418578,1708324252510,-511.25198583,0.00027671,2]
[314418579,1708324252523,-500.0,0.00027671,2]
[314418580,1708324252533,-500.0,0.00027671,2]
[314418581,1708324252542,-500.0,0.00027671,2]
[314418582,1708324252551,-500.0,0.00027671,2]
[314418583,1708324252562,-500.0,0.00027671,2]
[314418584,1708324252570,-500.0,0.00027671,2]
[314418585,1708324252580,-500.0,0.00027671,2]
[314418586,1708324252589,-500.0,0.00027671,2]
[314418587,1708324252599,-500.0,0.00027671,2]
[314418588,1708324252609,-500.0,0.00027671,2]
[314418589,1708324252618,-500.0,0.00027671,2]
[314418590,1708324252627,-500.0,0.00027671,2]
[314418591,1708324252636,-1602.96,0.00027671,2]
[314418592,1708324252646,-727.09,0.00027671,2]
[314418593,1708324252655,-500.0,0.00027671,2]
[314418594,1708324252664,-500.0,0.00027671,2]
[314418595,1708324252673,-500.0,0.00027671,2]
[314418596,1708324252683,-500.0,0.00027671,2]
[314418597,1708324252692,-500.0,0.00027671,2]
[314418598,1708324252701,-500.0,0.00027671,2]
[314418599,1708324252710,-500.0,0.00027671,2]
[314418600,1708324252720,-500.0,0.00027671,2]
[314418601,1708324252729,-512.2827155,0.00027671,2]
[314418602,1708324252738,-500.0,0.00027671,2]
[314418603,1708324252747,-500.0,0.00027671,2]
[314418604,1708324252826,-500.0,0.00027671,2]
[314418605,1708324252835,-500.75177584,0.00027671,2]
[314418606,1708324252844,-500.0,0.00027671,2]
[314418607,1708324252853,-658.69,0.00027671,2]
[314418608,1708324252862,-618.76160166,0.00027671,2]
[314418609,1708324252871,-500.0,0.00027671,2]
[314418610,1708324252881,-1000.0,0.00027671,2]
[314418611,1708324252890,-500.0,0.00027671,2]
[314418612,1708324252899,-648.6667239,0.00027671,2]
[314418613,1708324252909,-500.0,0.00027671,2]
[314418614,1708324252918,-500.0,0.00027671,2]
[314418615,1708324252928,-500.0,0.00027671,2]
[314418616,1708324252937,-500.0,0.00027671,2]
[314418617,1708324252946,-151.0,0.00027671,2]
[314418618,1708324252955,-500.0,0.00027671,2]
[314418619,1708324252964,-500.0,0.00027671,2]
[314418620,1708324252973,-500.0,0.00027671,2]
[314418621,1708324252984,-500.0,0.00027671,2]
[314418622,1708324252993,-500.0,0.00027671,2]
[314418623,1708324253002,-500.0,0.00027671,2]
[314418624,1708324253011,-500.0,0.00027671,2]
[314418625,1708324253021,-500.0,0.00027671,2]
[314418626,1708324253030,-500.0,0.00027671,2]
[314418627,1708324253038,-500.0,0.00027671,2]
[314418628,1708324253047,-500.0,0.00027671,2]
[314418629,1708324253057,-500.0,0.00027671,2]
[314418630,1708324253065,-258.33381019,0.00027671,2]
[314418631,1708324253074,-500.0,0.00027671,2]
[314418632,1708324253084,-500.0,0.00027671,2]
[314418633,1708324253093,-500.0,0.00027671,2]
[314418634,1708324253102,-500.0,0.00027671,2]
[314418635,1708324253111,-500.0,0.00027671,2]
[314418636,1708324253120,-500.0,0.00027671,2]
[314418637,1708324253129,-500.0,0.00027671,2]
[314418638,1708324253138,-500.0,0.00027671,2]
[314418639,1708324253147,-511.57844843,0.00027671,2]
[314418640,1708324253157,-500.0,0.00027671,2]
[314418641,1708324253166,-500.0,0.00027671,2]
[314418642,1708324253175,-500.0,0.00027671,2]
[314418643,1708324253184,-500.0,0.00027671,2]
[314418644,1708324253194,-500.0,0.00027671,2]
[314418645,1708324253203,-500.0,0.00027671,2]
[314418646,1708324253213,-500.0,0.00027671,2]
[314418647,1708324253222,-500.0,0.00027671,2]
[314418648,1708324253231,-500.0,0.00027671,2]
[314418649,1708324253242,-1405.32,0.00027671,2]
[314418650,1708324253252,-500.0,0.00027671,2]
[314418651,1708324253263,-265.30020713,0.00027671,2]
[314418652,1708324253272,-500.0,0.00027671,2]
[314418653,1708324253281,-500.0,0.00027671,2]
[314418654,1708324253291,-500.0,0.00027671,2]
[314418655,1708324253301,-989.21,0.00027671,2]
[314418656,1708324253311,-500.0,0.00027671,2]
[314418657,1708324253321,-4972.5,0.00027671,2]
[314418658,1708324253331,-500.0,0.00027671,2]
[314418659,1708324253341,-500.0,0.00027671,2]
[314418660,1708324253351,-500.0,0.00027671,2]
[314418661,1708324253360,-500.0,0.00027671,2]
[314418662,1708324253370,-756.18,0.00027671,2]
[314418663,1708324253380,-3030.08,0.00027671,2]
[314418664,1708324253390,-500.0,0.00027671,2]
[314418665,1708324253399,-500.0,0.00027671,2]
[314418666,1708324253409,-500.0,0.00027671,2]
[314418667,1708324253419,-500.0,0.00027671,2]
[314418668,1708324253429,-500.0,0.00027671,2]
[314418669,1708324253438,-4837.96,0.00027671,2]
[314418670,1708324253447,-500.0,0.00027671,2]
[314418671,1708324253457,-500.0,0.00027671,2]
[314418672,1708324253466,-500.0,0.00027671,2]
[314418673,1708324253476,-1067.28209205,0.00027671,2]
[314418674,1708324253656,-21.81790795,0.00027671,2]
[314418675,1708324253666,-500.0,0.00027671,2]
[314418676,1708324253676,-500.0,0.00027671,2]
[314418677,1708324253685,-500.0,0.00027671,2]
[314418678,1708324253696,-1297.97,0.00027671,2]
[314418679,1708324253705,-666.73,0.00027671,2]
[314418680,1708324253715,-500.0,0.00027671,2]
[314418681,1708324253801,-500.0,0.00027671,2]
[314418682,1708324253811,-500.0,0.00027671,2]
[314418683,1708324253821,-500.0,0.00027671,2]
[314418684,1708324253830,-526.20020828,0.00027671,2]
[314418685,1708324253840,-132.13787897,0.00027671,2]
[314418686,1708324253950,-2990.95146165,0.0002406,3]
[314418687,1708324253963,-461.22711775,0.0002406,3]
[314418996,1708325438696,-224.086682,0.00022042,2]
[314418998,1708325438706,-2843.4169312,0.00022045,2]
[314419000,1708325438716,-324.61640443,0.0002268,2]
[314419002,1708325438725,-427.92197084,0.00022681,2]
[314419004,1708325438734,-1589.70158376,0.00022689,2]
[314419006,1708325438743,-155.06512735,0.00022693,2]
[314419008,1708325438752,-50000.0,0.0002385,2]
[314419010,1708325438761,-8596.63,0.0002396,3]
[314419012,1708325438771,-7163.86,0.0002396,3]
[314419014,1708325438780,-1415.04239157,0.00023968,2]
[314419016,1708325438789,-184.7626931,0.00023969,2]
[314419018,1708325438798,-154811.05278016,0.0002397,2]
[314419020,1708325438807,-500.0,0.00023999,2]
[314419021,1708325438816,-500.0,0.00023999,2]
[314419022,1708325438825,-500.0,0.00023999,2]
[314419023,1708325438834,-500.0,0.00023999,2]
[314419025,1708325438844,-500.0,0.00023999,2]
[314419027,1708325438853,-500.0,0.00023999,2]
[314419029,1708325438861,-500.0,0.00023999,2]
[314419031,1708325438871,-500.0,0.00023999,2]
[314419033,1708325438883,-500.0,0.00023999,2]
[314419035,1708325438892,-434.34820902,0.00023999,2]
[314419037,1708325438901,-541.51976786,0.00023999,2]
[314419040,1708325438911,-500.0,0.00023999,2]